Cogmind - Beta 14 @@@ ROGUE MODE // 2024.11.21 @ 17:15:40 Player: skye Result: Destroyed by D-53 Grenadier with Mini Grenade Launcher Performance ------------- Evolutions (0) 0 Regions Visited (2) 400 Robots Destroyed (11) 55 Value Destroyed (402) 402 Prototype IDs (0) 0 Alien Tech Used (0) 0 Bonus (0) 0 TOTAL SCORE: 857 Bonus ------- None Cogmind --------- Core Integrity 0/250 Matter 300/300 Energy 100/100 System Corruption 0% Temperature Cool (0) Movement Rolling (100) Location -10/Mines Parts ------- > --- POWER (1) -------- (None) > --- PROPULSION (2) --- Compact Wheel > --- UTILITY (2) ------ Small Storage Unit Targeting Computer > --- WEAPON (2) ------- (None) > --- INVENTORY (8) ---- Ion Engine Aluminum Leg Aluminum Leg Aluminum Leg Heat Sink Signal Interpreter ECM Suite Mining Claw Peak State ------------ > --- POWER ------------ Ion Engine > --- PROPULSION ------- Aluminum Leg Aluminum Leg > --- UTILITY ---------- Small Storage Unit Targeting Computer > --- WEAPON ----------- Medium Laser Datajack > --- INVENTORY -------- Ion Engine Compact Wheel Compact Wheel ECM Suite EM Pulse Gun EM Pulse Gun [Rating: 7] Favorites ----------- Power Ion Engine Engine Ion Engine Propulsion Aluminum Leg Leg Aluminum Leg Wheel Compact Wheel Utility Small Storage Unit Storage Small Storage Unit Processor Targeting Computer Weapon Medium Laser Energy Gun Medium Laser Special Melee Weapon Datajack Build | -11 -10 -10 ------- Run | Yrd Mat Min Slots Evolved . | . . . Power . | . . . Propulsion . | . . . Utility . | . . . Weapon . | . . . Parts Attached 19 | 1 16 2 Power 5 | . 5 . Engine 5 | . 5 . Core . | . . . Reactor . | . . . Propulsion 7 | . 6 1 Treads . | . . . Leg 6 | . 6 . Wheel 1 | . . 1 Hover . | . . . Flight . | . . . Utility 1 | . 1 . Device . | . . . Storage . | . . . Processor 1 | . 1 . Hackware . | . . . Protection . | . . . Artifact . | . . . Weapon 6 | 1 4 1 Energy Gun 4 | 1 3 . Energy Cannon . | . . . Ballistic Gun . | . . . Ballistic Cannon . | . . . Launcher . | . . . Special Weapon . | . . . Impact Weapon . | . . . Slashing Weapon . | . . . Piercing Weapon . | . . . Special Melee Weapon 2 | . 1 1 Unidentified Prototypes . | . . . Parts Lost 10 | . 5 5 Power 2 | . 1 1 Propulsion 2 | . . 2 Utility . | . . . Weapon 6 | . 4 2 Highest Loss Streak 3 | . 2 3 To Critical Strikes . | . . . Average Slot Usage (%) 87 | . 89 79 Engine 13 | . 13 14 Leg 26 | . 28 19 Storage 14 | . 14 14 Processor 11 | . 11 14 Energy Gun 16 | . 17 9 Special Melee Weapon 3 | . 3 3 Peak Build Rating 7 | 6 7 6 Average Rating 6 | 6 6 5 On Entrance 6 | 6 6 6 Naked Turns . | . . . Heaviest Build 14 | 14 14 11 Greatest Support 20 | 20 20 20 Greatest Overweight (x) 1 | . 1 . Average Overweight (x) . | . . . Largest Inventory Capacity 8 | 8 8 8 Average Capacity 8 | 8 8 8 Most Carried 8 | 5 8 8 Average Carried 7 | 4 7 7 Final Capacity 8 | 8 8 8 Final Carried 8 | 4 8 8 Class Distribution -------------------- 100% | Mutant Dominant Class ---------------- Mutant | -10/Materials Mutant | -10/Mines Resources | -11 -10 -10 ----------- Run | Yrd Mat Min Matter Collected 410 | 200 195 15 Remotely . | . . . Salvage Created 442 | . 442 . Parts 24 | . 24 . Haulers Intercepted . | . . . Recyclers Shooed 1 | . 1 . Parts Field Recycled . | . . . Retrieved Matter . | . . . Parts Self-Destructed . | . . . Prevented . | . . . Kills | -11 -10 -10 ------- Run | Yrd Mat Min Combat Hostiles Destroyed 10 | . 10 . Guns 8 | . 8 . AOE 2 | . 2 . Classes Destroyed 2 | . 2 . Operator 1 | . 1 . Grunt 10 | . 10 . Best Kill Streak 3 | . 3 . Combat Bots Only 3 | . 3 . Max Kills in Single Turn 2 | . 2 . Gunslinging . | . . . Exploded 2 | . 2 . Melee . | . . . Uniques/NPCs Destroyed . | . . . Combat | -11 -10 -10 -------- Run | Yrd Mat Min Hostile Shots Fired 94 | . 86 8 Missed 23 | . 23 . Damage Taken 1062 | . 734 328 Core 250 | . 167 83 Absorbed by Shields . | . . . Core Remaining (%) 100 | 100 . . Volleys Fired 64 | . 64 . Largest 2 | . 2 . Hottest 90 | . 90 . Shots Fired 73 | . 73 . Gun 73 | . 73 . Cannon . | . . . Launcher . | . . . Special . | . . . Kinetic . | . . . Thermal 61 | . 61 . Explosive . | . . . Electromagnetic 12 | . 12 . Robot Hit Streak 11 | . 11 . Robot Miss Streak 3 | . 3 . Penetration Max . | . . . Secondary Targets . | . . . Shots Hit Robots 54 | . 54 . Core Hits 26 | . 26 . Critical Kills . | . . . Critical Parts Destroyed . | . . . Critical Strikes 6 | . 6 . Burn 6 | . 6 . Melee Attacks 4 | . 4 . Impact . | . . . Slashing . | . . . Piercing . | . . . Sneak Attacks 2 | . 2 . Combat Hostiles . | . . . Follow-up Attacks . | . . . Damage Inflicted 713 | . 713 . Guns 633 | . 633 . Cannons . | . . . Explosions 80 | . 80 . Melee . | . . . Ramming . | . . . Kinetic . | . . . Thermal 517 | . 517 . Explosive . | . . . Electromagnetic 196 | . 196 . Impact . | . . . Slashing . | . . . Piercing . | . . . Highest Corruption . | . . . Average Corruption . | . . . Corruption Purged . | . . . Corruption Blocked . | . . . Overload Shots . | . . . Overflow Damage . | . . . Projectiles . | . . . Explosions . | . . . Melee . | . . . Knockbacks . | . . . Impact . | . . . Kinetic . | . . . Secondary . | . . . Self-Inflicted Damage 17 | . 17 . Shots 1 | . 1 . Rammed . | . . . Targets Rammed . | . . . Kicked . | . . . Crushed . | . . . Highest Temperature 428 | . 428 . Average Temperature 90 | . 90 . Received Heat Transfer 420 | . 411 9 Effects 6 | . 6 . Shutdowns 1 | . 1 . Energy Bleed 1 | . 1 . Interference 3 | . 3 . Matter Decay 1 | . 1 . Siege Activations . | . . . Robots Corrupted . | . . . Combat Hostiles . | . . . Parts Fried . | . . . Impact Corruptions . | . . . Robots Melted . | . . . Combat Hostiles . | . . . Parts Melted 4 | . 4 . Heat Transferred 1843 | . 1843 . Parts Sabotaged . | . . . Parts Stolen . | . . . Parts Stripped . | . . . Power Chain Reactions 1 | . 1 . Alert | -11 -10 -10 ------- Run | Yrd Mat Min Peak Influence 278 | . 278 108 Initial 108 | . . 108 Average 86 | . 84 99 Maximum Alert Level 1 | . 1 . Low Security (%) 84 | 100 81 100 Level 1 15 | . 18 . Level 2 . | . . . Level 3 . | . . . Level 4 . | . . . Level 5 . | . . . High Security . | . . . Max Security . | . . . Squads Dispatched 4 | . 4 . Investigation 1 | . 1 . Extermination . | . . . Reinforcement 3 | . 3 . Assault . | . . . Garrison . | . . . Intercept . | . . . Searches Triggered . | . . . Construction Impeded . | . . . Haulers Reinforced . | . . . Active Scanning Responses . | . . . Cargo Convoy Interrupts . | . . . Stealth | -11 -10 -10 --------- Run | Yrd Mat Min Distress Signals 3 | . 1 2 Communications Jammed . | . . . Distress Signals . | . . . Times Spotted 32 | . 23 9 Peak Tracking Total 7 | . 4 7 Tactical Retreats 2 | . . 2 Traps | -11 -10 -10 ------- Run | Yrd Mat Min Traps Triggered 4 | . 4 . Indirectly . | . . . Trap Hack Attempts 1 | . 1 . Triggered . | . . . Disarmed . | . . . Reprogrammed . | . . . Reused . | . . . Traps Extracted . | . . . Installed . | . . . Triggered . | . . . Machines | -11 -10 -10 ---------- Run | Yrd Mat Min Machines Disabled 2 | . 2 . Max in Single Turn 2 | . 2 . Machines Repaired . | . . . Machines Dismantled . | . . . Machines Sabotaged . | . . . Overloaded Fab Kills . | . . . Hacking | -11 -10 -10 --------- Run | Yrd Mat Min Machines Accessed 3 | . 3 . Terminals 1 | . 1 . Fabricators . | . . . Repair Stations . | . . . Recycling Units 2 | . 2 . Scanalyzers . | . . . Garrison Access . | . . . Total Hacks 6 | . 6 . Successful 3 | . 3 . Failed 3 | . 3 . Catastrophic . | . . . Database Lockouts . | . . . Manual 4 | . 4 . Terminals 4 | . 4 . Fabricators . | . . . Repair Stations . | . . . Recycling Units 2 | . 2 . Scanalyzers . | . . . Garrison Access . | . . . Terminal Hacks . | . . . Fabricator Hacks . | . . . Repair Station Hacks . | . . . Recycling Unit Hacks 2 | . 2 . Report Inventory 2 | . 2 . Scanalyzer . | . . . Garrison Access Hacks . | . . . Unauthorized Hacks 1 | . 1 . Terminals 1 | . 1 . Botnet 1 | . 1 . Fabricators . | . . . Repair Stations . | . . . Recycling Units . | . . . Scanalyzers . | . . . Garrison Access . | . . . Data Cores Recovered . | . . . Used . | . . . Hacking Detections 1 | . 1 . Full Trace Events . | . . . Feedback Events . | . . . Feedback Blocked . | . . . Robot Schematics Acquired . | . . . Robots Built . | . . . Authchips . | . . . Time . | . . . Total Robot Build Rating . | . . . Part Schematics Acquired . | . . . Parts Built . | . . . Authchips . | . . . Time . | . . . Total Part Build Rating . | . . . Parts Repaired . | . . . Time . | . . . Parts Recycled . | . . . Recycled Matter . | . . . Retrieved Matter . | . . . Retrieved Components . | . . . Parts Scanalyzed . | . . . Part Schematics Acquired . | . . . Parts Damaged . | . . . Bothacking | -11 -10 -10 ------------ Run | Yrd Mat Min Used RIF Installer . | . . . Robots Hacked 2 | . 2 . Non-combat 2 | . 2 . Combat . | . . . Robot Hacks Applied 2 | . 2 . parse_system 1 | . 1 . find_recycling 1 | . 1 . Relay Couplers Released . | . . . Fabnet Peak Effective % . | . . . Robots Rewired . | . . . Allies Hacked . | . . . Hacks Repelled . | . . . Allies | -11 -10 -10 -------- Run | Yrd Mat Min Total Allies . | . . . Largest Group . | . . . Highest-Rated Group . | . . . Highest-Rated Ally . | . . . Total Orders . | . . . Ally Attacks . | . . . Total Damage . | . . . Kills . | . . . Allies Corrupted . | . . . Allies Melted . | . . . Intel | -11 -10 -10 ------- Run | Yrd Mat Min Robot Analysis Total . | . . . Derelict Logs Recovered . | . . . Drone Launches . | . . . Drone Recoveries . | . . . Exploration | -11 -10 -10 ------------- Run | Yrd Mat Min Turns Passed 897 | 3 756 138 Spaces Moved 583 | 1 474 108 Core . | . . . Treads . | . . . Legs 539 | 1 474 64 Wheels 44 | . . 44 Hover . | . . . Flight . | . . . Fastest Speed 100 | 120 120 100 Average Speed 118 | 120 120 111 Slowest Speed 190 | 120 190 120 Overloaded Moves . | . . . Propulsion Burnouts . | . . . Robots Hopped . | . . . Cave-ins Triggered . | . . . Exploration Rate (%) 35 | 2 69 36 Regions Visited 2 Branch Regions 1 Pre-discovered Areas . | . . . Known Exits Taken . | . . . Unknown Exits Taken 2 | 1 1 . Scrap Searched 1 | . . 1 Spaces Dug . | . . . Terrain Destroyed 2 | . 2 . Melee . | . . . Projectile . | . . . AOE 2 | . 2 . Terrain Rammed . | . . . Walls Destroyed . | . . . Machines Disabled . | . . . Actions | -11 -10 -10 --------- Run | Yrd Mat Min Total 714 | 3 586 125 Wait 26 | . 12 14 Move 581 | . 473 108 Hop . | . . . Pick Up 11 | . 10 1 Fast Attach 5 | . 4 1 Attach 6 | . 5 1 Detach . | . . . Swap 8 | 1 7 . Drop 8 | 2 6 . Fire 64 | . 64 . Melee 4 | . 4 . Ram . | . . . Kick . | . . . Crush . | . . . Escape Stasis . | . . . Rewire . | . . . Trap 1 | . 1 . Miscellaneous . | . . . Route ------- -11/Scrapyard -10/Materials (discovered 4 exits: [*Mat x3] / [*Min]) -10/Mines History --------- Turn | Location | Event 4 | -11/Scrapyard | Discovered new exit (range 0) 4 | -11/Scrapyard | Entered Materials 123 | -10/Materials | Discovered new exit (range 3) 158 | -10/Materials | Discovered new exit (range 16) 304 | -10/Materials | Build established: Mutant 407 | -10/Materials | Discovered new exit (range 10) 612 | -10/Materials | Discovered new exit (range 11) 613 | -10/Materials | Core integrity fell below 50% 760 | -10/Materials | Entered Mines 825 | -10/Mines | Assembled infested the area 830 | -10/Mines | Assisted by a Guerilla fighting off Assembled 850 | -10/Mines | Core integrity fell below 20% 883 | -10/Mines | Lost 3 parts (2n1w) 898 | -10/Mines | Destroyed by D-53 Grenadier with Mini Grenade Launcher Last Messages --------------- Sml. Laser destroyed. Aluminum Leg destroyed. K-01 Serf collects debris. Aluminum Leg destroyed. The unstable cave ceiling collapses. K-01 Serf collects debris. K-01 Serf cleans the Core Extractor. Searching scrap... Found Lrg. Storage Unit. Found Mining Claw. Found 45 Matter. Found Datajack. Found 30 Matter. Acquired 5 matter. Acquired Mining Claw. Acquired Datajack. K-01 Serf collects debris. Acquired 10 matter. Ion Engine destroyed. Datajack destroyed. Map ----- +----------------------------------------------------+ | ?????????????????????????????????????????????????? | | ?????????????????????????????????????????????????? | | ???????????????????????????????#####?????????????? | | ???????????????????????????????# # ###??????????? | | ????????????????????????????# ## #????####??? | | ???????????????????????????## % #???## ##?? | | ?????????????????????#" "# %! ##??# #?? | | ??????????????????????# #### #?? | | ??????????????????????# # ## #??? | | ??????????????????????# ### # "#### | | ??????????????????????# ????? ## "%" | | ?????????????????????# ???????# ## " | | ?????????????????????##?????????# ########### | | ???????????????????????????????## ##??# | | ???????????????????????????????# ## #??# ### | | ???????????????????????????????# #?## #?? | | ???????????????????????????????# ### #?? | | ???????????????????????????????# ### ##? | | ???????????????????????????????# ## ## | | ???????????????????????????????## ### # | | ????????????????????????????????# #?# # | | ????????????????????????????????## # ##?## # | | ?????????????????????????????????### ##??## # | | ?????????????????################# ##??# # | | ?????????????????# ! d """ #??# | | ?????????????????# @ %% """ #??## | | ?????????????????# ############### """ ##???## | | ?????????????????# #?????????????# ##?????## | | ??# ##### #?????????????# #???????## | | ??# #????????????? #???????# | | ??# #######????????????? ? | | ????????????????????????????????? | | ???????????????????????????????? ## ### ##### | | ???????????????????????????????? ####? #???????# | | ???????????????????????????????? #??????#??????? | | ????????????????????????????????##??????????????? | | ????????????????????????????????????????????????# | | ????????????????????????????????????????????????## | | ?????????????????????????????????????????????????? | | ?????????????????????????????????????????????????? | | ?????????????????????????????????????????????????? | | ?????????????????????????????????????????????????? | | ?????????????????????????????????????????????????? | | ?????????????????????????????????????????????????? | | ?????????????????????????????????????????????????? | | ?????????????????????????????????????????????????? | | ?????????????????????????????????????????????????? | | ?????????????????????????????????????????????????? | | ?????????????????????????????????????????????????? | | ?????????????????????????????????????????????????? | +----------------------------------------------------+ Best States ------------- Heat Dissipation 25 Energy Generation 10 Energy Capacity 250 Matter Stores 300 Matter Capacity 300 Sight Range 16 Terrain Scan Density 10 Evasion (%) 55 Targeting Accuracy 5 Item Schematics ----------------- None Robot Schematics ------------------ None Fabricated ------------ Nothing Alien Tech Used ----------------- None Achievements -------------- None Challenges ------------ None Game ------ Seed ExoskeletonNovaTorch Manual? 0 Play Time 00:07:22 Cumulative 52.9 hours Start 2024.11.21 @ 17:09:23 End 2024.11.21 @ 17:15:40 Sessions 1 Manual Loads 0 Difficulty Rogue Special Mode None Game No. 71 Rogue 27 Adventurer 44 Explorer 0 Win Type - Total 0 Types 0/0/0/0/0/0/0/0/0 Lore% 18 Gallery% 43 Achievement% 30 Wizard Run 0 Options --------- Layout 1 ASCII 0 Keyboard 1 Movement Vi Keybinds 0 Fullscreen 1 Font 24/Terminus Map View 50x40 Zoom Use 0% Tactical HUD 0 Map Filters NONE Filters NONE Steam 1 RUN: f43dca75-c2a0-460a-a441-b25a9c4a5acc